fUST/lending_fUST_20251121
["ID","MTS","AMOUNT","RATE_DAILY","PERIOD"]
[394561360,1763711449449,-151.0,0.000193,2]
[394561361,1763711449459,-1000.0,0.00019344,7]
[394561362,1763711449469,-1000.0,0.00019344,7]
[394561363,1763711449478,-2000.0,0.00019349,7]
[394561364,1763711449488,-500.0,0.000194,2]
[394561365,1763711449497,-500.0,0.000194,2]
[394561366,1763711449510,-500.0,0.000194,2]
[394561368,1763711449520,-500.0,0.000194,2]
[394561369,1763711449530,-500.0,0.000194,2]
[394561370,1763711449793,-501.34260908,0.000194,2]
[394561371,1763711449821,-500.0,0.000194,2]
[394561372,1763711449836,-249.82820676,0.000194,2]
[394561373,1763711449847,-500.94466038,0.000194,2]
[394561374,1763711449856,-500.0,0.000194,2]
[394561375,1763711449866,-500.0,0.000194,2]
[394561376,1763711449876,-5000.0,0.00019541,2]
[394561377,1763711449886,-693.56,0.00019726,2]
[394561378,1763711449896,-1260.0,0.00019726,2]
[394561379,1763711449905,-1000.0,0.00019948,2]
[394561380,1763711449916,-1001.38156553,0.00019948,2]
[394561381,1763711449927,-1000.0,0.00019948,2]
[394561382,1763711449937,-1000.0,0.00019948,2]
[394561383,1763711449947,-521.58904085,0.00019948,2]
[394561384,1763711449958,-1000.0,0.00019948,2]
[394561385,1763711449967,-501.93154685,0.00019948,2]
[394561386,1763711449977,-502.26353811,0.00019948,2]
[394561387,1763711449987,-580.706,0.00019951,2]
[394561388,1763711449997,-170.403,0.00019951,2]
[394561389,1763711450012,-500.0,0.00019973,2]
[394561390,1763711450021,-500.0,0.00019973,2]
[394561391,1763711450032,-500.0,0.00019973,2]
[394561392,1763711450042,-500.0,0.00019973,2]
[394561393,1763711450051,-408.34368286,0.00019973,2]
[394561394,1763711450061,-500.0,0.00019973,2]
[394561395,1763711450070,-500.0,0.00019973,2]
[394561396,1763711450080,-171.67094224,0.00019973,2]
[394561397,1763711450090,-500.0,0.00019973,2]
[394561398,1763711450100,-500.0,0.00019973,2]
[394561399,1763711450109,-500.0,0.00019978,2]
[394561400,1763711450118,-500.0,0.00019978,2]
[394561401,1763711450128,-170.78646662,0.00019978,2]
[394561402,1763711450137,-500.0,0.00019978,2]
[394561403,1763711450146,-500.0,0.00019978,2]
[394561404,1763711450155,-500.0,0.00019978,2]
[394561405,1763711450164,-500.0,0.00019978,2]
[394561406,1763711450173,-500.0,0.00019978,2]
[394561407,1763711450183,-505.96441184,0.00019978,2]
[394561408,1763711450192,-500.0,0.00019978,2]
[394561409,1763711450201,-500.0,0.00019978,2]
[394561410,1763711450210,-500.0,0.00019978,2]
[394561411,1763711450219,-501.0761211,0.00019978,2]
[394561412,1763711450228,-358.33165366,0.00019978,2]
[394561413,1763711450237,-500.0,0.00019978,2]
[394561414,1763711450247,-500.0,0.00019978,2]
[394561415,1763711450260,-500.77459023,0.00019978,2]
[394561416,1763711450269,-501.41471151,0.00019978,2]
[394561417,1763711450279,-200.0,0.00019999,2]
[394561418,1763711450288,-1887.0,0.0002,2]
[394561419,1763711450297,-8401.00714421,0.0002,2]
[394561420,1763711450309,-2582.30630634,0.0002,2]
[394561421,1763711450320,-675.21218923,0.0002,2]
[394561422,1763711450329,-14618.56628469,0.0002,2]
[394561423,1763711450339,-369.56182839,0.0002,2]
[394561424,1763711450348,-1337.04047534,0.0002,2]
[394561425,1763711450368,-8454.99778161,0.0002,2]
[394561472,1763711729387,167.0,0.000204,120]
[394561473,1763711730644,167.0,0.0002142,120]
[394561475,1763711739233,957.0,0.0001938,120]
[394561476,1763711740450,957.0,0.00020349,120]
[394561477,1763711741666,957.0,0.00021366,120]
[394561478,1763711742915,957.0,0.00022435,120]
[394561479,1763711744169,957.0,0.00023557,120]
[394561480,1763711745460,957.0,0.00024734,120]
[394561482,1763711837463,2639.44832004,8e-05,3]
[394561491,1763712036767,383.0,0.00020687,120]
[394561492,1763712041779,383.0,0.00021721,120]
[394561493,1763712042821,383.0,0.00022807,120]
[394561494,1763712044058,383.0,0.00023947,120]
[394561497,1763712045469,383.0,0.00025145,120]
[394561507,1763712330733,192.0,0.00020798,120]
[394561508,1763712331979,192.0,0.00021838,120]
[394561509,1763712333194,192.0,0.0002293,120]
[394561510,1763712334430,192.0,0.00024076,120]
[394561511,1763712365645,243.34353727,0.00020988,120]
[394561535,1763712432088,-206.62175082,8.014e-05,2]
[394561536,1763712432110,-216.40500667,8.103e-05,2]
[394561537,1763712432131,-43.62254706,8.37e-05,2]
[394561538,1763712453087,-682.65985024,8.37e-05,2]
[394561552,1763712550243,-155.65,6.993e-05,2]
[394561553,1763712550271,-155.65,6.993e-05,2]
[394561554,1763712550293,-96.50663848,6.993e-05,2]
[394561559,1763712628703,164.0,0.00020835,120]
[394561560,1763712630283,164.0,0.00021877,120]
[394561561,1763712631567,164.0,0.00022971,120]
[394561590,1763712632498,-59.11336152,6.993e-05,2]
[394561591,1763712632508,-212.07690654,7.682e-05,2]
[394561593,1763712632519,-150.57473194,8.37e-05,2]
[394561595,1763712632535,-1124.56196956,8.37e-05,2]
[394561597,1763712632546,-368.35323938,8.459e-05,2]
[394561599,1763712632557,-616.85373541,8.979e-05,2]
[394561601,1763712632566,-162.70895661,9.253e-05,2]
[394561603,1763712632576,-300.0,9.279e-05,2]
[394561605,1763712632586,-300.0,9.279e-05,2]
[394561607,1763712632596,-300.0,9.279e-05,2]
[394561608,1763712632606,-300.0,9.279e-05,2]
[394561610,1763712632615,-1200.0,9.279e-05,2]
[394561613,1763712632625,-500.0,9.28e-05,2]
[394561615,1763712632634,-500.0,9.28e-05,2]
[394561617,1763712632643,-500.0,9.28e-05,2]
[394561618,1763712632657,-500.0,9.28e-05,2]
[394561619,1763712632666,-500.0,9.28e-05,2]
[394561620,1763712632676,-500.0,9.28e-05,2]
[394561621,1763712632686,-500.0,9.28e-05,2]
[394561622,1763712632696,-500.0,9.28e-05,2]
[394561623,1763712632705,-500.0,9.28e-05,2]
[394561624,1763712632715,-500.0,9.28e-05,2]
[394561625,1763712632724,-500.0,9.28e-05,2]
[394561626,1763712632734,-500.0,9.28e-05,2]
[394561627,1763712632743,-500.0,9.28e-05,2]
[394561628,1763712632753,-500.0,9.28e-05,2]
[394561629,1763712632763,-593.44837862,9.28e-05,2]
[394561630,1763712632773,-500.0,9.28e-05,2]
[394561631,1763712632785,-500.0,9.28e-05,2]
[394561632,1763712632794,-421.58172386,9.28e-05,2]
[394561633,1763712632804,-500.0,9.28e-05,2]
[394561634,1763712632814,-500.0,9.28e-05,2]
[394561635,1763712632824,-500.0,9.28e-05,2]
[394561636,1763712632834,-500.0,9.28e-05,2]
[394561637,1763712632844,-500.0,9.28e-05,2]
[394561638,1763712632854,-500.0,9.28e-05,2]
[394561639,1763712632863,-500.0,9.28e-05,2]
[394561640,1763712632874,-500.0,9.28e-05,2]
[394561641,1763712632884,-500.0,9.28e-05,2]
[394561642,1763712632893,-500.0,9.28e-05,2]
[394561643,1763712632903,-500.0,9.28e-05,2]
[394561644,1763712632913,-500.0,9.28e-05,2]
[394561645,1763712632922,-500.0,9.28e-05,2]
[394561646,1763712632932,-500.0,9.28e-05,2]
[394561647,1763712632941,-500.0,9.28e-05,2]
[394561648,1763712632951,-500.0,9.28e-05,2]
[394561649,1763712632960,-500.0,9.28e-05,2]
[394561650,1763712632970,-500.0,9.28e-05,2]
[394561651,1763712632980,-500.0,9.28e-05,2]
[394561652,1763712632989,-500.0,9.28e-05,2]
[394561653,1763712632999,-500.0,9.28e-05,2]
[394561654,1763712633008,-500.0,9.28e-05,2]
[394561655,1763712633018,-500.0,9.28e-05,2]
[394561656,1763712633028,-500.0,9.28e-05,2]
[394561657,1763712633038,-500.0,9.28e-05,2]
[394561658,1763712633048,-500.0,9.28e-05,2]
[394561659,1763712633058,-550.0,9.28e-05,2]
[394561660,1763712633070,-500.0,9.28e-05,2]
[394561661,1763712633081,-500.0,9.28e-05,2]
[394561662,1763712633091,-500.0,9.28e-05,2]
[394561663,1763712633101,-500.0,9.28e-05,2]
[394561664,1763712633111,-500.0,9.28e-05,2]
[394561665,1763712633121,-238.72458354,9.28e-05,2]
[394561666,1763712633131,-500.0,9.28e-05,2]
[394561667,1763712633140,-500.0,9.28e-05,2]
[394561668,1763712633151,-500.0,9.28e-05,2]
[394561669,1763712633162,-500.0,9.28e-05,2]
[394561670,1763712633172,-500.0,9.28e-05,2]
[394561671,1763712633182,-500.0,9.28e-05,2]
[394561672,1763712633192,-500.0,9.28e-05,2]
[394561673,1763712633202,-500.0,9.28e-05,2]
[394561674,1763712633213,-446.60938129,9.28e-05,2]
[394561675,1763712633223,-500.0,9.28e-05,2]
[394561676,1763712633232,-500.0,9.28e-05,2]
[394561677,1763712633242,-500.0,9.28e-05,2]
[394561678,1763712633251,-500.0,9.28e-05,2]
[394561679,1763712633261,-500.0,9.28e-05,2]
[394561680,1763712633272,-500.0,9.28e-05,2]
[394561681,1763712633281,-500.0,9.28e-05,2]
[394561682,1763712633295,-500.0,9.28e-05,2]
[394561683,1763712633305,-3608.38307501,9.28e-05,2]
[394561684,1763712633315,-500.0,9.28e-05,2]
[394561685,1763712633325,-3608.38307501,9.28e-05,2]
[394561686,1763712633335,-500.0,9.28e-05,2]
[394561687,1763712633345,-3608.38307501,9.28e-05,2]
[394561688,1763712633355,-500.0,9.28e-05,2]
[394561689,1763712633366,-500.0,9.28e-05,2]
[394561690,1763712633376,-3608.38307501,9.28e-05,2]
[394561691,1763712633385,-500.0,9.28e-05,2]
[394561692,1763712633395,-434.48378614,9.28e-05,2]
[394561693,1763712633405,-500.0,9.28e-05,2]
[394561694,1763712633415,-3608.38307501,9.28e-05,2]
[394561695,1763712633425,-500.0,9.28e-05,2]
[394561696,1763712633435,-500.0,9.28e-05,2]
[394561697,1763712633445,-3608.38307501,9.28e-05,2]
[394561698,1763712633455,-500.0,9.28e-05,2]
[394561699,1763712633465,-3608.38307501,9.28e-05,2]
[394561700,1763712633474,-500.0,9.28e-05,2]
[394561701,1763712633484,-500.0,9.28e-05,2]
[394561702,1763712633494,-500.0,9.28e-05,2]
[394561703,1763712633504,-3608.38307501,9.28e-05,2]
[394561704,1763712633513,-500.0,9.28e-05,2]
[394561705,1763712633523,-3608.38307501,9.28e-05,2]
[394561706,1763712633535,-500.0,9.28e-05,2]
[394561707,1763712633545,-3608.38307501,9.28e-05,2]
[394561708,1763712633555,-500.0,9.28e-05,2]
[394561709,1763712633565,-3608.38307501,9.28e-05,2]
[394561710,1763712633574,-500.0,9.28e-05,2]
[394561711,1763712633584,-500.0,9.28e-05,2]
[394561712,1763712633594,-3608.38307501,9.28e-05,2]
[394561713,1763712633604,-3608.38307501,9.28e-05,2]
[394561714,1763712633614,-500.0,9.28e-05,2]
[394561715,1763712633624,-3608.38307501,9.28e-05,2]
[394561716,1763712633634,-500.0,9.28e-05,2]
[394561717,1763712633644,-3608.38307501,9.28e-05,2]
[394561718,1763712633654,-3608.38307501,9.28e-05,2]
[394561719,1763712633663,-500.0,9.28e-05,2]
[394561720,1763712633672,-3608.38307501,9.28e-05,2]
[394561721,1763712633682,-500.0,9.28e-05,2]
[394561722,1763712633691,-500.0,9.28e-05,2]
[394561723,1763712633701,-3608.38307501,9.28e-05,2]
[394561724,1763712633711,-500.0,9.28e-05,2]
[394561725,1763712633721,-3608.38307501,9.28e-05,2]
[394561726,1763712633736,-500.0,9.28e-05,2]
[394561727,1763712633751,-3608.38307501,9.28e-05,2]
[394561728,1763712633760,-500.0,9.28e-05,2]
[394561729,1763712633771,-500.0,9.28e-05,2]
[394561730,1763712633781,-3608.38307501,9.28e-05,2]
[394561731,1763712633794,-500.0,9.28e-05,2]
[394561732,1763712633804,-426.58384698,9.28e-05,2]
[394561733,1763712633813,-3608.38307501,9.28e-05,2]
[394561734,1763712633823,-500.0,9.28e-05,2]
[394561735,1763712633833,-3608.38307501,9.28e-05,2]
[394561736,1763712633843,-500.0,9.28e-05,2]
[394561737,1763712633853,-3608.38307501,9.28e-05,2]
[394561738,1763712633863,-500.0,9.28e-05,2]
[394561739,1763712633873,-3608.38307501,9.28e-05,2]
[394561740,1763712633883,-500.0,9.28e-05,2]
[394561741,1763712633893,-3608.38307501,9.28e-05,2]
[394561742,1763712633903,-500.0,9.28e-05,2]
[394561743,1763712633912,-500.0,9.28e-05,2]
[394561744,1763712633923,-3608.38307501,9.28e-05,2]
[394561745,1763712633933,-3608.38307501,9.28e-05,2]
[394561746,1763712633943,-3608.38307501,9.28e-05,2]
[394561747,1763712633953,-3608.38307501,9.28e-05,2]
[394561748,1763712633963,-3608.38307501,9.28e-05,2]
[394561749,1763712633973,-3608.38307501,9.28e-05,2]
[394561750,1763712633983,-3608.38307501,9.28e-05,2]
[394561751,1763712633993,-3608.38307501,9.28e-05,2]
[394561752,1763712634002,-3608.38307501,9.28e-05,2]
[394561753,1763712634012,-3608.38307501,9.28e-05,2]
[394561754,1763712634022,-3432.4701937,9.28e-05,2]
[394561755,1763712634129,164.0,0.00024119,120]
[394561762,1763712638319,-175.91288131,9.28e-05,2]
[394561763,1763712638330,-981.58561678,9.28e-05,2]
[394561764,1763712638346,-534.94906441,9.28e-05,2]
[394561765,1763712638357,-553.19985832,9.28e-05,2]
[394561766,1763712638390,-1538.6485355,9.28e-05,2]
[394561767,1763712638401,-500.0,9.28e-05,2]
[394561768,1763712638411,-500.0,9.28e-05,2]
[394561769,1763712638421,-3542.77611002,9.28e-05,2]
[394561770,1763712638430,-500.0,9.28e-05,2]
[394561771,1763712638440,-3542.77611002,9.28e-05,2]
[394561772,1763712638449,-450.0,9.28e-05,2]
[394561773,1763712638459,-3542.77611002,9.28e-05,2]
[394561774,1763712638469,-3542.77611002,9.28e-05,2]
[394561775,1763712638479,-500.0,9.28e-05,2]
[394561776,1763712638489,-3542.77611002,9.28e-05,2]
[394561777,1763712638498,-500.0,9.28e-05,2]
[394561778,1763712638508,-3542.77611002,9.28e-05,2]
[394561779,1763712638518,-500.0,9.28e-05,2]
[394561780,1763712638528,-3542.77611002,9.28e-05,2]
[394561781,1763712638539,-3542.77611002,9.28e-05,2]
[394561782,1763712638549,-500.0,9.28e-05,2]
[394561783,1763712638559,-500.0,9.28e-05,2]
[394561784,1763712638569,-3542.77611002,9.28e-05,2]
[394561785,1763712638579,-500.0,9.28e-05,2]
[394561786,1763712638590,-3542.77611002,9.28e-05,2]
[394561787,1763712638601,-3542.77611002,9.28e-05,2]
[394561788,1763712638611,-3542.77611002,9.28e-05,2]
[394561789,1763712638621,-3542.77611002,9.28e-05,2]
[394561790,1763712638631,-3542.77611002,9.28e-05,2]
[394561791,1763712638641,-3542.77611002,9.28e-05,2]
[394561792,1763712638651,-3542.77611002,9.28e-05,2]
[394561793,1763712638661,-3542.77611002,9.28e-05,2]
[394561794,1763712638671,-3542.77611002,9.28e-05,2]
[394561795,1763712638681,-3542.77611002,9.28e-05,2]
[394561796,1763712638691,-3542.77611002,9.28e-05,2]
[394561797,1763712638700,-3542.77611002,9.28e-05,2]
[394561798,1763712638710,-3542.77610992,9.28e-05,2]
[394561799,1763712638719,-1200.0,9.28e-05,2]
[394561800,1763712638729,-500.0,9.281e-05,2]
[394561801,1763712638739,-500.93977236,9.283e-05,2]
[394561802,1763712638749,-500.0,9.283e-05,2]
[394561803,1763712638758,-622.32639581,9.283e-05,2]
[394561804,1763712638768,-518.39835129,9.283e-05,2]
[394561805,1763712638777,-300.0,9.495e-05,2]
[394561806,1763712638789,-300.0,9.495e-05,2]
[394561807,1763712638799,-300.0,9.495e-05,2]
[394561808,1763712638809,-300.0,9.495e-05,2]
[394561809,1763712638819,-300.0,9.495e-05,2]
[394561810,1763712638829,-300.0,9.495e-05,2]
[394561811,1763712638839,-300.0,9.495e-05,2]
[394561812,1763712638848,-300.0,9.495e-05,2]
[394561813,1763712638858,-300.0,9.495e-05,2]
[394561814,1763712638868,-300.0,9.495e-05,2]
[394561815,1763712638878,-135.57529139,9.495e-05,2]
[394561879,1763712640696,-164.42470861,9.495e-05,2]
[394561881,1763712640706,-300.0,9.495e-05,2]
[394561883,1763712640716,-300.0,9.495e-05,2]
[394561886,1763712640737,-300.0,9.495e-05,2]
[394561887,1763712640748,-300.0,9.495e-05,2]
[394561888,1763712640758,-600.0,9.495e-05,2]
[394561890,1763712640768,-35.62036139,9.555e-05,2]
[394562024,1763712648347,-464.37963861,9.555e-05,2]
[394562026,1763712648357,-250.25074971,9.682e-05,2]
[394562028,1763712648368,-500.0,9.803e-05,2]
[394562030,1763712648379,-500.0,9.828e-05,2]
[394562032,1763712648389,-1000.0,9.831e-05,2]
[394562034,1763712648399,-209.40437684,0.0001,2]
[394562036,1763712648408,-500.0,0.00010102,2]
[394562038,1763712648418,-400.0,0.00010206,2]
[394562040,1763712648428,-1000.0,0.00010351,2]
[394562041,1763712648438,-720.0,0.00010444,2]
[394562042,1763712648448,-217.15233878,0.00010548,2]
[394562044,1763712648458,-553.63,0.00010798,2]
[394562045,1763712648467,-178.64,0.00010798,2]
[394562046,1763712648477,-178.64,0.00010798,2]
[394562048,1763712648487,-178.64,0.00010798,2]
[394562050,1763712648498,-553.62706579,0.00010898,2]
[394562052,1763712648508,-500.0,0.00010958,2]
[394562055,1763712648517,-225.18697532,0.00011096,2]
[394562057,1763712648527,-295.724,0.00011225,2]
[394562059,1763712648538,-864.0,0.00011489,2]
[394562061,1763712648550,-2151.0,0.00011581,2]
[394562062,1763712648559,-630.0,0.00011581,2]
[394562064,1763712648569,-989.0,0.00011581,2]
[394562066,1763712648579,-233.51889341,0.00011644,2]
[394562069,1763712648589,-288.42459289,0.00011682,2]
[394562070,1763712648599,-500.0,0.00011826,2]
[394562073,1763712648609,-500.0,0.00011826,2]
[394562075,1763712648619,-500.0,0.00012054,2]
[394562077,1763712648629,-242.15909246,0.00012192,2]
[394562079,1763712648639,-1021.13693867,0.00012374,2]
[394562081,1763712648649,-1000.0,0.00012374,2]
[394562082,1763712648658,-353.13058887,0.00012379,2]
[394562084,1763712648667,-500.0,0.00012544,2]
[394562086,1763712648678,-500.0,0.00012544,2]
[394562088,1763712648688,-503.24461669,0.00012544,2]
[394562090,1763712648699,-501.99138947,0.00012544,2]
[394562092,1763712648709,-1000.0,0.00012638,2]
[394562094,1763712648718,-251.11897888,0.0001274,2]
[394562096,1763712648728,-150.0,0.00012757,2]
[394562098,1763712648737,-1500.0,0.00012922,2]
[394562100,1763712648746,-189.02880096,0.00013092,2]
[394562102,1763712648755,-1082.11436431,0.00013092,2]
[394562104,1763712648764,-500.0,0.0001315,2]
[394562106,1763712648774,-260.4103811,0.00013288,2]
[394562108,1763712648784,-150.0,0.00013365,2]
[394562110,1763712648794,-2000.0,0.0001347,2]
[394562112,1763712648809,-326.59843607,0.00013682,2]
[394562114,1763712648820,-523.54771039,0.00013698,2]
[394562116,1763712648829,-652.6481744,0.00013699,2]
[394562123,1763712648882,-805.7130966,0.00013699,2]
[394562125,1763712648893,-2000.0,0.00013699,7]
[394562127,1763712648905,-300.0,0.00013699,2]
[394562129,1763712648914,-300.0,0.00013699,2]
[394562131,1763712648925,-160.0,0.000137,2]
[394562146,1763712648935,-270.0455652,0.00013836,2]
[394562148,1763712649085,-1000.0,0.00013901,2]
[394562150,1763712649099,-244.0,0.00013901,2]
[394562151,1763712649109,-209.40437685,0.00013953,2]
[394562152,1763712649118,-2000.0,0.00013953,2]
[394562154,1763712649128,-574.12855637,0.00013953,2]
[394562155,1763712649138,-2000.0,0.00013953,2]
[394562156,1763712649147,-2000.0,0.00013953,2]
[394562157,1763712649156,-1881.85333829,0.00013953,2]
[394562158,1763712649166,-2461.96078839,0.00013953,2]
[394562159,1763712649176,-500.0,0.00013953,2]
[394562160,1763712649186,-500.0,0.00013953,2]
[394562161,1763712649195,-250.0,0.00013953,2]
[394562162,1763712649212,-500.0,0.00013953,2]
[394562163,1763712649221,-250.0,0.00013953,2]
[394562164,1763712649230,-250.0,0.00013953,2]
[394562165,1763712649240,-500.0,0.00013953,2]
[394562166,1763712649249,-250.0,0.00013953,2]
[394562167,1763712649260,-250.0,0.00013953,2]
[394562168,1763712649269,-500.0,0.00013953,2]
[394562169,1763712649279,-250.0,0.00013953,2]
[394562170,1763712649289,-250.0,0.00013953,2]
[394562171,1763712649302,-500.0,0.00013953,2]
[394562172,1763712649312,-250.0,0.00013953,2]
[394562173,1763712649322,-250.0,0.00013953,2]
[394562174,1763712649332,-250.0,0.00013953,2]
[394562175,1763712649341,-500.0,0.00013953,2]
[394562177,1763712649351,-250.0,0.00013953,2]
[394562179,1763712649361,-250.0,0.00013953,2]
[394562180,1763712649371,-250.0,0.00013953,2]
[394562181,1763712649380,-500.0,0.00013953,2]
[394562183,1763712649390,-250.0,0.00013953,2]
[394562185,1763712649399,-250.0,0.00013953,2]
[394562186,1763712649408,-250.0,0.00013953,2]
[394562187,1763712649418,-500.0,0.00013953,2]
[394562188,1763712649428,-250.0,0.00013953,2]
[394562189,1763712649437,-250.0,0.00013953,2]
[394562190,1763712649447,-250.0,0.00013953,2]
[394562191,1763712649456,-500.0,0.00013953,2]
[394562192,1763712649465,-250.0,0.00013953,2]
[394562193,1763712649475,-250.0,0.00013953,2]
[394562194,1763712649484,-250.0,0.00013953,2]
[394562195,1763712649494,-500.0,0.00013953,2]
[394562197,1763712649503,-250.0,0.00013953,2]
[394562198,1763712649513,-250.0,0.00013953,2]
[394562199,1763712649523,-250.0,0.00013953,2]
[394562200,1763712649532,-250.0,0.00013953,2]
[394562201,1763712649542,-250.0,0.00013953,2]
[394562202,1763712649554,-250.0,0.00013953,2]
[394562203,1763712649563,-250.0,0.00013953,2]
[394562204,1763712649573,-250.0,0.00013953,2]
[394562205,1763712649583,-305.82992185,0.00013953,2]
[394562206,1763712649592,-1504.54521308,0.00013953,2]
[394562207,1763712649602,-160.0,0.00013953,2]
[394562208,1763712649612,-160.0,0.00013953,2]
[394562209,1763712649622,-160.0,0.00013953,2]
[394562210,1763712649632,-160.0,0.00013953,2]
[394562211,1763712649642,-160.0,0.00013953,2]
[394562212,1763712649652,-250.0,0.00013953,2]
[394562213,1763712649661,-222.42382077,0.00013953,2]
[394562214,1763712649671,-250.0,0.00013953,2]
[394562215,1763712649681,-250.0,0.00013953,2]
[394562216,1763712649690,-250.0,0.00013953,2]
[394562217,1763712649699,-250.0,0.00013953,2]
[394562218,1763712649709,-250.0,0.00013953,2]
[394562219,1763712649718,-150.0,0.00013972,2]
[394562220,1763712649728,-500.0,0.00014142,2]
[394562221,1763712649737,-500.0,0.00014142,2]
[394562222,1763712649747,-500.0,0.00014142,2]
[394562223,1763712649756,-500.0,0.00014142,2]
[394562224,1763712649766,-500.0,0.00014142,2]
[394562225,1763712649775,-500.0,0.00014246,2]
[394562226,1763712649784,-260.0,0.00014248,2]
[394562227,1763712649794,-280.03725112,0.00014384,2]
[394562228,1763712649805,-300.0,0.00014384,2]
[394562229,1763712649815,-595.37131296,0.00014501,2]
[394562230,1763712649825,-13376.706082,0.00014521,2]
[394562231,1763712649834,-368.35323938,0.00014604,2]
[394562232,1763712649844,-668.23695013,0.0001469,2]
[394562233,1763712649853,-502.32997443,0.0001469,2]
[394562234,1763712649863,-1000.0,0.0001469,2]
[394562235,1763712649873,-465.50772027,0.0001469,2]
[394562261,1763713601799,1000.0,0.0001475,19]
[394562262,1763713627125,-426.43555459,8.643e-05,2]
[394562263,1763713627149,-426.43555459,8.73e-05,2]
[394562264,1763713627173,-205.79298413,8.774e-05,2]
[394562265,1763713627197,-300.0,9.173e-05,2]
[394562266,1763713627218,-62.19769586,9.174e-05,2]
[394562299,1763713832649,-213.01088897,8.507e-05,2]
[394562301,1763713832660,-258.30753261,9.082e-05,2]
[394562305,1763713832684,-2176.2993157,9.082e-05,2]
[394562307,1763713832696,-300.0,9.172e-05,2]
[394562309,1763713832705,-300.0,9.172e-05,2]
[394562312,1763713832714,-5.7956123,9.172e-05,2]
[394562315,1763713832739,-254.00753659,9.172e-05,2]
[394562318,1763713837708,-691.556,9.08e-05,2]
[394562319,1763713837720,-548.64085111,9.08e-05,2]
[394562320,1763713837729,-424.92914889,9.172e-05,2]
[394562321,1763713837742,-515.26770222,9.172e-05,2]
[394562324,1763713837751,-300.0,9.172e-05,2]
[394562325,1763713837760,-296.87611052,9.173e-05,2]
[394562326,1763713837772,-203.12388948,9.173e-05,2]
[394562327,1763713837781,-500.0,9.173e-05,2]
[394562328,1763713837791,-324.50616571,9.173e-05,2]
[394562329,1763713837800,-259.34831161,9.173e-05,2]
[394562330,1763713837810,-500.0,9.173e-05,2]
[394562331,1763713837819,-500.0,9.173e-05,2]
[394562332,1763713837829,-500.0,9.173e-05,2]
[394562333,1763713837838,-500.0,9.173e-05,2]
[394562334,1763713837847,-500.0,9.173e-05,2]
[394562335,1763713837857,-500.0,9.173e-05,2]
[394562336,1763713837867,-498.55585431,9.173e-05,2]
[394562337,1763713837876,-324.62019154,9.173e-05,2]
[394562338,1763713837886,-500.0,9.173e-05,2]
[394562339,1763713837895,-500.0,9.173e-05,2]
[394562340,1763713837905,-500.0,9.173e-05,2]
[394562341,1763713837914,-409.31931788,9.173e-05,2]
[394562342,1763713837924,-500.0,9.173e-05,2]
[394562343,1763713837934,-500.0,9.173e-05,2]
[394562344,1763713837943,-500.0,9.173e-05,2]
[394562345,1763713837953,-500.0,9.173e-05,2]
[394562346,1763713837963,-500.0,9.173e-05,2]
[394562347,1763713837972,-500.0,9.173e-05,2]
[394562348,1763713837982,-500.0,9.173e-05,2]
[394562349,1763713837991,-500.0,9.173e-05,2]
[394562350,1763713838001,-500.0,9.173e-05,2]
[394562351,1763713838010,-500.0,9.173e-05,2]
[394562352,1763713838020,-500.0,9.173e-05,2]
[394562354,1763713838030,-500.0,9.173e-05,2]
[394562355,1763713838040,-500.0,9.173e-05,2]
[394562357,1763713838049,-500.0,9.173e-05,2]
[394562359,1763713838059,-500.0,9.173e-05,2]
[394562361,1763713838070,-500.0,9.173e-05,2]
[394562362,1763713838079,-500.0,9.173e-05,2]
[394562363,1763713838089,-500.0,9.173e-05,2]
[394562364,1763713838099,-500.0,9.173e-05,2]
[394562365,1763713838109,-328.81644215,9.173e-05,2]
[394562366,1763713838119,-500.0,9.173e-05,2]